[Event "FRA-chTW Top 12 2019"]
[Site "Vandoeuvre"]
[Date "2019.05.03"]
[Round "2.6"]
[White "Gospodaru, Teodora"]
[Black "Thomas, Anysia"]
[Result "1/2-1/2"]
[ECO "D91"]
[WhiteElo "1434"]
[BlackElo "2178"]
[Annotator "NA"]
[PlyCount "146"]
[EventDate "2019.05.02"]
[EventType "team-tourn"]
[EventCountry "FRA"]
[SourceTitle "playchess.com"]
[Source "ChessBase"]
[SourceQuality "1"]
[TimeControl "40/5400+30:1800+30"]

1. d4 {[%emt 0:00:00]} Nf6 {[%emt 0:00:00]} 2. c4 {[%emt 0:00:00]} g6 {[%emt 0:00:00]} 3. Nf3 {[%emt 0:00:00]} Bg7 {[%emt 0:00:00]} 4. Nc3 {[%emt 0:00:16]} d5 {[%emt 0:00:00]} 5. Bg5 {[%emt 0:00:10]} Ne4 {[%emt 0:00:04]} 6. cxd5 {[%emt 0:01:51]} Nxg5 {[%emt 0:00:21]} 7. Nxg5 {[%emt 0:00:14]} e6 {[%emt 0:00:37]} 8. Nf3 {[%emt 0:00:48]} exd5 {[%emt 0:00:09]} 9. e3 {[%emt 0:00:14]} O-O {[%emt 0:00:37]} 10. Bd3 {[%emt 0:01:56]} c6 {[%emt 0:00:47]} 11. O-O {[%emt 0:01:15]} Be6 {[%emt 0:01:31]} 12. Qe2 {[%emt 0:03:33]} Nd7 {[%emt 0:01:26]} 13. Rac1 {[%emt 0:04:54]} Re8 {[%emt 0:04:29]} 14. h3 {[%emt 0:03:06]} Qf6 {[%emt 0:09:06]} 15. b4 {[%emt 0:04:16]} Qe7 {[%emt 0:15:03]} 16. Rb1 {[%emt 0:13:42]} Rac8 {[%emt 0:08:27]} 17. Rfc1 {[%emt 0:03:04]} Qf6 {[%emt 0:09:33]} 18. a4 {[%emt 0:59:41]} Bf5 {[%emt 0:01:26]} 19. b5 {[%emt 0:00:00]} Nb6 {[%emt 0:07:29]} 20. a5 {[%emt 0:00:00]} Nc4 {[%emt 0:04:52]} 21. a6 {[%emt 0:00:00]} bxa6 {[%emt 0:03:37]} 22. bxa6 {[%emt 0:00:00]} Bxd3 {[%emt 0:02:52]} 23. Qxd3 {[%emt 0:00:00]} Rb8 {[%emt 0:00:37]} 24. Na4 {[%emt 0:00:00]} Rb5 {[%emt 0:09:50]} 25. Nc5 {[%emt 0:00:00]} Qd6 {[%emt 0:03:29]} 26. Nd2 {[%emt 0:00:00]} Nxd2 {[%emt 0:10:12]} 27. Qxd2 {[%emt 0:00:00]} Bf8 {[%emt 0:02:08]} 28. Rxb5 {[%emt 0:00:00]} cxb5 {[%emt 0:00:06]} 29. Qa5 {[%emt 0:00:00]} b4 {[%emt 0:03:30]} 30. Qxb4 {[%emt 0:00:00]} Rc8 {[%emt 0:00:11]} 31. Rb1 {[%emt 0:00:00]} Qc6 {[%emt 0:01:12]} 32. Qb7 {[%emt 0:00:00]} Bxc5 {[%emt 0:01:08]} 33. Rc1 {[%emt 0:00:00]} Qxb7 {[%emt 0:00:46]} 34. axb7 {[%emt 0:00:00]} Rb8 {[%emt 0:01:25]} 35. Rxc5 {[%emt 0:00:00]} Rxb7 {[%emt 0:00:00]} 36. Rxd5 {[%emt 0:00:00]} Kf8 {[%emt 0:00:00]} 37. Kf1 {[%emt 0:00:00]} Ke7 {[%emt 0:00:00]} 38. Ke2 {[%emt 0:00:00]} Rb2+ {[%emt 0:01:02]} 39. Kf3 {[%emt 0:00:00]} Ra2 {[%emt 0:00:15]} 40. g3 {[%emt 0:00:11]} a5 {[%emt 0:00:03]} 41. Ke4 {[%emt 0:30:09]} a4 {[%emt 0:30:12]} 42. Ra5 {[%emt 0:00:58]} Rxf2 {[%emt 0:01:23]} 43. Rxa4 {[%emt 0:00:13]} Rg2 {[%emt 0:00:21]} 44. Kf3 {[%emt 0:00:48]} Rg1 {[%emt 0:00:35]} 45. Ra5 {[%emt 0:00:53]} Rf1+ {[%emt 0:00:25]} 46. Ke2 {[%emt 0:01:05]} Rg1 {[%emt 0:00:45]} 47. Kf2 {[%emt 0:00:14]} Rd1 {[%emt 0:00:07]} 48. h4 {[%emt 0:00:49]} h5 {[%emt 0:00:49]} 49. Rg5 {[%emt 0:01:49]} Ke6 {[%emt 0:00:43]} 50. Ke2 {[%emt 0:00:58]} Ra1 {[%emt 0:01:20]} 51. Rc5 {[%emt 0:03:39]} Rg1 {[%emt 0:00:00]} 52. Kf2 {[%emt 0:00:32]} Rd1 {[%emt 0:00:00]} 53. Re5+ {[%emt 0:01:23]} Kd6 {[%emt 0:00:36]} 54. Rg5 {[%emt 0:04:19]} Ke6 {[%emt 0:00:08]} 55. Kf3 {[%emt 0:00:00]} Rf1+ {[%emt 0:01:46]} 56. Ke4 {[%emt 0:00:00]} f5+ {[%emt 0:00:00]} 57. Kd3 {[%emt 0:00:00]} Kf6 {[%emt 0:00:00]} 58. d5 {[%emt 0:00:01]} Rd1+ {[%emt 0:00:06]} 59. Kc4 {[%emt 0:00:08]} Rc1+ {[%emt 0:00:59]} 60. Kd4 {[%emt 0:00:08]} Rd1+ {[%emt 0:00:07]} 61. Kc5 {[%emt 0:00:12]} Rc1+ {[%emt 0:00:30]} 62. Kb6 {[%emt 0:01:11]} Rb1+ {[%emt 0:00:48]} 63. Kc7 {[%emt 0:00:41]} Rc1+ {[%emt 0:00:06]} 64. Kd7 {[%emt 0:00:22]} Re1 {[%emt 0:00:32]} 65. d6 {[%emt 0:00:25]} Rxe3 {[%emt 0:00:16]} 66. Kc7 {[%emt 0:00:12]} Rc3+ {[%emt 0:00:26]} 67. Kd8 {[%emt 0:00:52]} Kf7 {[%emt 0:01:21]} 68. Kd7 {[%emt 0:00:24]} Rc5 {[%emt 0:00:22]} 69. Kd8 {[%emt 0:00:22]} Rc6 {[%emt 0:00:40]} 70. Kd7 {[%emt 0:00:08]} Rc5 {[%emt 0:00:30]} 71. Kd8 {[%emt 0:00:05]} Rc6 {[%emt 0:00:41]} 72. Kd7 {[%emt 0:00:06]} Rc5 {[%emt 0:00:29]} 73. Kd8 {[%emt 0:00:05]} Rc6 {[%emt 0:01:07]} 1/2-1/2

[Event "FRA-chTW Top 12 2019"]
[Site "Vandoeuvre"]
[Date "2019.05.03"]
[Round "2.7"]
[White "Steil-Antoni, Fiona"]
[Black "Klipper, Noemie"]
[Result "1-0"]
[ECO "B23"]
[WhiteElo "2156"]
[BlackElo "1816"]
[Annotator "NA"]
[PlyCount "55"]
[EventDate "2019.05.02"]
[EventType "team-tourn"]
[EventCountry "FRA"]
[SourceTitle "playchess.com"]
[Source "ChessBase"]
[SourceQuality "1"]
[TimeControl "40/5400+30:1800+30"]

1. e4 {[%emt 0:00:00]} c5 {[%emt 0:00:00]} 2. Nc3 {[%emt 0:00:00]} g6 {[%emt 0:00:00]} 3. f4 {[%emt 0:00:00]} Nc6 {[%emt 0:00:00]} 4. Nf3 {[%emt 0:00:00]} Bg7 {[%emt 0:00:17]} 5. Bb5 {[%emt 0:00:03]} e6 {[%emt 0:00:18]} 6. Bxc6 {[%emt 0:00:21]} bxc6 {[%emt 0:01:03]} 7. O-O {[%emt 0:00:26]} d5 {[%emt 0:01:00]} 8. d3 {[%emt 0:02:01]} Ne7 {[%emt 0:00:48]} 9. Rb1 {[%emt 0:02:01]} O-O {[%emt 0:00:58]} 10. Na4 {[%emt 0:02:43]} Qa5 {[%emt 0:24:34]} 11. b3 {[%emt 0:01:54]} dxe4 {[%emt 0:15:11]} 12. dxe4 {[%emt 0:00:18]} c4 {[%emt 0:08:11]} 13. Qe1 {[%emt 0:05:09]} Qa6 {[%emt 0:09:19]} 14. Be3 {[%emt 0:03:27]} cxb3 {[%emt 0:11:14]} 15. cxb3 {[%emt 0:02:02]} c5 {[%emt 0:08:34]} 16. Nxc5 {[%emt 0:06:19]} Qb5 {[%emt 0:07:02]} 17. Rd1 {[%emt 0:04:34]} Nc6 {[%emt 0:00:36]} 18. e5 {[%emt 0:01:52]} Nb4 {[%emt 0:02:33]} 19. Qh4 {[%emt 0:02:18]} Nd5 {[%emt 0:00:53]} 20. Bf2 {[%emt 0:00:42]} Ba6 {[%emt 0:05:09]} 21. Rfe1 {[%emt 0:01:46]} Rac8 {[%emt 0:00:52]} 22. Ne4 {[%emt 0:01:58]} f5 {[%emt 0:01:30]} 23. Neg5 {[%emt 0:02:33]} h6 {[%emt 0:00:08]} 24. Nxe6 {[%emt 0:00:14]} Rf7 {[%emt 0:00:03]} 25. Nxg7 {[%emt 0:00:36]} Kxg7 {[%emt 0:00:02]} 26. e6 {[%emt 0:02:36]} Rff8 {[%emt 0:01:43]} 27. Bd4+ {[%emt 0:04:24]} Kh7 {[%emt 0:00:17]} 28. Ng5+ {[%emt 0:00:20]} 1-0

[Event "FRA-chTW Top 12 2019"]
[Site "Vandoeuvre"]
[Date "2019.05.03"]
[Round "2.7"]
[White "Marin Benito, Carla"]
[Black "Hamelin, Isabelle"]
[Result "0-1"]
[ECO "C26"]
[WhiteElo "1978"]
[BlackElo "1609"]
[Annotator "NA"]
[PlyCount "135"]
[EventDate "2019.05.02"]
[EventType "team-tourn"]
[EventCountry "FRA"]
[SourceTitle "playchess.com"]
[Source "ChessBase"]
[SourceQuality "1"]
[TimeControl "40/5400+30:1800+30"]

1. e4 {[%emt 0:00:00]} e5 {[%emt 0:00:00]} 2. Nc3 {[%emt 0:00:00]} Nc6 {[%emt 0:00:00]} 3. g3 {[%emt 0:00:09]} Nf6 {[%emt 0:00:03]} 4. Bg2 {[%emt 0:00:07]} d6 {[%emt 0:00:23]} 5. d3 {[%emt 0:00:15]} Be6 {[%emt 0:00:42]} 6. Be3 {[%emt 0:02:16]} Qd7 {[%emt 0:04:44]} 7. h3 {[%emt 0:01:20]} d5 {[%emt 0:04:35]} 8. Bd2 {[%emt 0:10:31]} dxe4 {[%emt 0:05:57]} 9. dxe4 {[%emt 0:05:43]} O-O-O {[%emt 0:01:14]} 10. Nf3 {[%emt 0:07:46]} Bb4 {[%emt 0:03:20]} 11. Qe2 {[%emt 0:12:12]} Nd4 {[%emt 0:18:05]} 12. Nxd4 {[%emt 0:04:07]} Qxd4 {[%emt 0:01:25]} 13. O-O-O {[%emt 0:04:56]} Qc4 {[%emt 0:08:57]} 14. Qxc4 {[%emt 0:05:01]} Bxc4 {[%emt 0:00:20]} 15. a3 {[%emt 0:00:23]} Bc5 {[%emt 0:01:05]} 16. f4 {[%emt 0:07:38]} Bd4 {[%emt 0:06:43]} 17. Nb1 {[%emt 0:12:24]} exf4 {[%emt 0:07:56]} 18. gxf4 {[%emt 0:00:39]} Nh5 {[%emt 0:00:15]} 19. Bf3 {[%emt 0:07:45]} Ng3 {[%emt 0:02:33]} 20. Rh2 {[%emt 0:00:04]} h5 {[%emt 0:00:17]} 21. h4 {[%emt 0:00:32]} Rhe8 {[%emt 0:01:56]} 22. Re1 {[%emt 0:01:06]} Nf1 {[%emt 0:01:42]} 23. Rg2 {[%emt 0:00:36]} g6 {[%emt 0:00:38]} 24. Be2 {[%emt 0:05:25]} Nxd2 {[%emt 0:01:23]} 25. Nxd2 {[%emt 0:00:14]} Bxb2+ {[%emt 0:04:14]} 26. Kxb2 {[%emt 0:00:39]} Rxd2 {[%emt 0:00:05]} 27. Bg4+ {[%emt 0:00:12]} Rd7 {[%emt 0:02:43]} 28. Bxd7+ {[%emt 0:00:23]} Kxd7 {[%emt 0:00:04]} 29. Rd2+ {[%emt 0:00:50]} Kc8 {[%emt 0:03:03]} 30. Kc3 {[%emt 0:00:36]} Be6 {[%emt 0:00:28]} 31. Rd4 {[%emt 0:01:09]} Rd8 {[%emt 0:00:19]} 32. Red1 {[%emt 0:00:28]} Rxd4 {[%emt 0:00:00]} 33. Rxd4 {[%emt 0:00:07]} c6 {[%emt 0:00:35]} 34. Ra4 {[%emt 0:02:55]} a6 {[%emt 0:00:32]} 35. Kd4 {[%emt 0:00:10]} Kd7 {[%emt 0:01:51]} 36. Ke5 {[%emt 0:01:27]} Ke7 {[%emt 0:00:23]} 37. Rb4 {[%emt 0:00:50]} Bc8 {[%emt 0:01:14]} 38. Rb1 {[%emt 0:01:10]} f6+ {[%emt 0:01:20]} 39. Kd4 {[%emt 0:00:08]} Kd6 {[%emt 0:05:02]} 40. c3 {[%emt 0:02:10]} c5+ {[%emt 0:00:09]} 41. Ke3 {[%emt 0:30:17]} b5 {[%emt 0:30:31]} 42. Rd1+ {[%emt 0:00:39]} Ke7 {[%emt 0:03:08]} 43. Rd5 {[%emt 0:00:20]} c4 {[%emt 0:00:22]} 44. Kd4 {[%emt 0:00:14]} Be6 {[%emt 0:00:29]} 45. Rc5 {[%emt 0:00:10]} Kd7 {[%emt 0:01:13]} 46. e5 {[%emt 0:04:41]} f5 {[%emt 0:00:26]} 47. Ke3 {[%emt 0:00:35]} Bf7 {[%emt 0:01:04]} 48. e6+ {[%emt 0:00:52]} Bxe6 {[%emt 0:00:21]} 49. Re5 {[%emt 0:00:06]} Kd6 {[%emt 0:00:18]} 50. Kd4 {[%emt 0:00:08]} Bf7 {[%emt 0:00:29]} 51. Re1 {[%emt 0:00:14]} Be6 {[%emt 0:00:35]} 52. Re2 {[%emt 0:00:24]} Bf7 {[%emt 0:00:14]} 53. Re5 {[%emt 0:00:50]} Be6 {[%emt 0:00:26]} 54. a4 {[%emt 0:00:21]} Bd7 {[%emt 0:01:37]} 55. Rd5+ {[%emt 0:01:13]} Kc6 {[%emt 0:00:59]} 56. axb5+ {[%emt 0:00:34]} axb5 {[%emt 0:00:05]} 57. Rxd7 {[%emt 0:00:43]} Kxd7 {[%emt 0:00:06]} 58. Kc5 {[%emt 0:00:03]} g5 {[%emt 0:01:02]} 59. fxg5 {[%emt 0:00:02]} f4 {[%emt 0:00:08]} 60. Kd4 {[%emt 0:00:02]} Ke6 {[%emt 0:00:17]} 61. Ke4 {[%emt 0:00:10]} b4 {[%emt 0:00:32]} 62. cxb4 {[%emt 0:01:49]} c3 {[%emt 0:00:17]} 63. Kd3 {[%emt 0:00:35]} f3 {[%emt 0:00:17]} 64. b5 {[%emt 0:00:33]} f2 {[%emt 0:00:18]} 65. Ke2 {[%emt 0:00:04]} c2 {[%emt 0:00:15]} 66. b6 {[%emt 0:00:35]} c1=Q {[%emt 0:11:16]} 67. Kxf2 {[%emt 0:00:14]} Qc5+ {[%emt 0:00:00]} 68. Ke1 {[%emt 0:03:09]} 0-1

[Event "FRA-chTW Top 12 2019"]
[Site "Vandoeuvre"]
[Date "2019.05.03"]
[Round "2.8"]
[White "Saliou, Sarah"]
[Black "Choisy, Mathilde"]
[Result "1/2-1/2"]
[ECO "A25"]
[WhiteElo "1696"]
[BlackElo "2113"]
[Annotator "NA"]
[PlyCount "56"]
[EventDate "2019.05.02"]
[EventType "team-tourn"]
[EventCountry "FRA"]
[SourceTitle "playchess.com"]
[Source "ChessBase"]
[SourceQuality "1"]
[TimeControl "40/5400+30:1800+30"]

1. c4 {[%emt 0:00:00]} e5 {[%emt 0:00:00]} 2. g3 {[%emt 0:00:00]} Nc6 {[%emt 0:00:00]} 3. Bg2 {[%emt 0:00:00]} g6 {[%emt 0:00:16]} 4. Nc3 {[%emt 0:00:00]} Bg7 {[%emt 0:00:06]} 5. e3 {[%emt 0:00:19]} d6 {[%emt 0:02:04]} 6. Nge2 {[%emt 0:00:20]} Nh6 {[%emt 0:08:24]} 7. d3 {[%emt 0:04:09]} O-O {[%emt 0:00:23]} 8. Rb1 {[%emt 0:00:24]} a5 {[%emt 0:02:38]} 9. a3 {[%emt 0:03:35]} Be6 {[%emt 0:02:11]} 10. b4 {[%emt 0:01:43]} axb4 {[%emt 0:00:05]} 11. axb4 {[%emt 0:00:04]} Rb8 {[%emt 0:00:52]} 12. b5 {[%emt 0:04:55]} Ne7 {[%emt 0:00:39]} 13. Nd5 {[%emt 0:00:40]} Qd7 {[%emt 0:11:17]} 14. O-O {[%emt 0:07:10]} Nxd5 {[%emt 0:05:50]} 15. cxd5 {[%emt 0:00:37]} Bh3 {[%emt 0:00:55]} 16. Ba3 {[%emt 0:13:19]} b6 {[%emt 0:04:27]} 17. Rb4 {[%emt 0:10:58]} Bxg2 {[%emt 0:01:15]} 18. Kxg2 {[%emt 0:00:06]} Rbe8 {[%emt 0:06:04]} 19. e4 {[%emt 0:31:46]} f5 {[%emt 0:08:32]} 20. f4 {[%emt 0:01:05]} Ng4 {[%emt 0:05:39]} 21. Bc1 {[%emt 0:01:26]} Nf6 {[%emt 0:03:50]} 22. Qc2 {[%emt 0:03:00]} Rf7 {[%emt 0:06:02]} 23. fxe5 {[%emt 0:03:57]} dxe5 {[%emt 0:00:12]} 24. Qc6 {[%emt 0:01:40]} Qxc6 {[%emt 0:07:12]} 25. bxc6 {[%emt 0:00:26]} Bf8 {[%emt 0:01:06]} 26. Ra4 {[%emt 0:01:18]} fxe4 {[%emt 0:01:09]} 27. dxe4 {[%emt 0:00:10]} b5 {[%emt 0:08:02]} 28. Ra7 {[%emt 0:02:10]} Bd6 {[%emt 0:00:00]} 1/2-1/2

[Event "FRA-chTW Top 12 2019"]
[Site "Vandoeuvre"]
[Date "2019.05.03"]
[Round "2.8"]
[White "Gromas, Hermine"]
[Black "Aggoune, Liza"]
[Result "0-1"]
[ECO "D02"]
[WhiteElo "1476"]
[BlackElo "1769"]
[Annotator "NA"]
[PlyCount "84"]
[EventDate "2019.05.02"]
[EventType "team-tourn"]
[EventCountry "FRA"]
[SourceTitle "playchess.com"]
[Source "ChessBase"]
[SourceQuality "1"]
[TimeControl "40/5400+30:1800+30"]

1. d4 {[%emt 0:00:00]} d5 {[%emt 0:00:09]} 2. c4 {[%emt 0:00:00]} c6 {[%emt 0:00:08]} 3. Nc3 {[%emt 0:00:00]} e6 {[%emt 0:00:21]} 4. cxd5 {[%emt 0:00:04]} exd5 {[%emt 0:00:10]} 5. Bf4 {[%emt 0:00:48]} Nf6 {[%emt 0:01:21]} 6. e3 {[%emt 0:00:55]} Bf5 {[%emt 0:03:06]} 7. Nf3 {[%emt 0:01:43]} Nbd7 {[%emt 0:03:20]} 8. Be2 {[%emt 0:02:14]} Be7 {[%emt 0:00:57]} 9. O-O {[%emt 0:00:38]} O-O {[%emt 0:00:59]} 10. h3 {[%emt 0:09:05]} Re8 {[%emt 0:11:59]} 11. Rc1 {[%emt 0:11:44]} Ne4 {[%emt 0:11:41]} 12. Bd3 {[%emt 0:20:32]} Ndf6 {[%emt 0:07:39]} 13. Qe2 {[%emt 0:05:28]} Qd7 {[%emt 0:07:07]} 14. Rfd1 {[%emt 0:05:33]} Rad8 {[%emt 0:25:52]} 15. Ne5 {[%emt 0:25:56]} Qe6 {[%emt 0:08:25]} 16. Na4 {[%emt 0:08:34]} Nd7 {[%emt 0:02:58]} 17. Nxd7 {[%emt 0:01:28]} Qxd7 {[%emt 0:00:39]} 18. a3 {[%emt 0:01:48]} Nf6 {[%emt 0:04:37]} 19. Bxf5 {[%emt 0:01:35]} Qxf5 {[%emt 0:00:18]} 20. b4 {[%emt 0:00:43]} Rc8 {[%emt 0:04:14]} 21. Nc5 {[%emt 0:00:31]} Bxc5 {[%emt 0:00:07]} 22. bxc5 {[%emt 0:00:05]} Qxf4 {[%emt 0:00:06]} 23. Qb2 {[%emt 0:01:19]} Qc7 {[%emt 0:00:24]} 24. Rb1 {[%emt 0:00:22]} Rb8 {[%emt 0:00:32]} 25. Rd3 {[%emt 0:00:35]} Nd7 {[%emt 0:02:48]} 26. Rb3 {[%emt 0:00:17]} b6 {[%emt 0:00:54]} 27. cxb6 {[%emt 0:00:36]} Rxb6 {[%emt 0:00:21]} 28. Rxb6 {[%emt 0:00:54]} axb6 {[%emt 0:00:04]} 29. Rc1 {[%emt 0:00:15]} Rb8 {[%emt 0:01:02]} 30. Qa2 {[%emt 0:00:44]} Qd6 {[%emt 0:00:14]} 31. a4 {[%emt 0:00:26]} Ra8 {[%emt 0:01:10]} 32. Qc2 {[%emt 0:00:34]} c5 {[%emt 0:00:31]} 33. dxc5 {[%emt 0:00:25]} Nxc5 {[%emt 0:01:02]} 34. Ra1 {[%emt 0:00:36]} Qc6 {[%emt 0:00:52]} 35. Qd1 {[%emt 0:00:31]} Rxa4 {[%emt 0:00:21]} 36. Rc1 {[%emt 0:00:30]} Ra8 {[%emt 0:00:26]} 37. Rc2 {[%emt 0:00:30]} Qe6 {[%emt 0:00:42]} 38. Rd2 {[%emt 0:00:29]} Rd8 {[%emt 0:00:20]} 39. Rd4 {[%emt 0:00:30]} Nb7 {[%emt 0:00:59]} 40. e4 {[%emt 0:00:58]} Qd6 {[%emt 0:00:28]} 41. exd5 {[%emt 0:30:02]} Nc5 {[%emt 0:30:26]} 42. Rd3 {[%emt 0:00:30]} Nxd3 {[%emt 0:00:02]} 0-1

[Event "FRA-chTW Top 12 2019"]
[Site "Vandoeuvre"]
[Date "2019.05.03"]
[Round "2.10"]
[White "Belluire, Beatrice"]
[Black "Frisk, Ellinor"]
[Result "1/2-1/2"]
[ECO "B27"]
[WhiteElo "1913"]
[BlackElo "2262"]
[Annotator "NA"]
[PlyCount "68"]
[EventDate "2019.05.02"]
[EventType "team-tourn"]
[EventCountry "FRA"]
[SourceTitle "playchess.com"]
[Source "ChessBase"]
[SourceQuality "1"]
[TimeControl "40/5400+30:1800+30"]

1. e4 {[%emt 0:00:00]} c5 {[%emt 0:03:18]} 2. Nf3 {[%emt 0:00:00]} g6 {[%emt 0:00:04]} 3. d4 {[%emt 0:00:00]} cxd4 {[%emt 0:00:02]} 4. Qxd4 {[%emt 0:00:00]} Nf6 {[%emt 0:00:07]} 5. e5 {[%emt 0:00:03]} Nc6 {[%emt 0:00:09]} 6. Qa4 {[%emt 0:00:12]} Nd5 {[%emt 0:00:15]} 7. Qe4 {[%emt 0:00:05]} Nc7 {[%emt 0:00:07]} 8. Bc4 {[%emt 0:01:47]} Bg7 {[%emt 0:03:00]} 9. Nc3 {[%emt 0:04:42]} b5 {[%emt 0:02:24]} 10. Bb3 {[%emt 0:05:46]} O-O {[%emt 0:03:01]} 11. Bf4 {[%emt 0:02:47]} Bb7 {[%emt 0:05:09]} 12. h4 {[%emt 0:11:35]} Na5 {[%emt 0:06:24]} 13. Qd3 {[%emt 0:05:15]} Nxb3 {[%emt 0:02:45]} 14. axb3 {[%emt 0:02:33]} Ne6 {[%emt 0:00:18]} 15. Bg3 {[%emt 0:00:57]} b4 {[%emt 0:07:45]} 16. Ne4 {[%emt 0:06:40]} d6 {[%emt 0:21:16]} 17. exd6 {[%emt 0:10:24]} Bxb2 {[%emt 0:08:50]} 18. Rd1 {[%emt 0:00:36]} Bxe4 {[%emt 0:06:49]} 19. Qxe4 {[%emt 0:00:12]} Bc3+ {[%emt 0:00:04]} 20. Kf1 {[%emt 0:04:00]} exd6 {[%emt 0:00:47]} 21. Rxd6 {[%emt 0:01:32]} Qe7 {[%emt 0:07:14]} 22. Kg1 {[%emt 0:17:01]} Rad8 {[%emt 0:04:33]} 23. Rxd8 {[%emt 0:04:11]} Rxd8 {[%emt 0:00:00]} 24. h5 {[%emt 0:02:28]} Rd1+ {[%emt 0:05:05]} 25. Kh2 {[%emt 0:00:06]} Rxh1+ {[%emt 0:00:18]} 26. Kxh1 {[%emt 0:00:01]} Qc5 {[%emt 0:02:40]} 27. hxg6 {[%emt 0:02:04]} hxg6 {[%emt 0:00:07]} 28. Ne5 {[%emt 0:06:25]} Qd4 {[%emt 0:00:33]} 29. Qf3 {[%emt 0:02:59]} Ng5 {[%emt 0:02:10]} 30. Qf6 {[%emt 0:01:22]} Qd1+ {[%emt 0:02:31]} 31. Kh2 {[%emt 0:00:01]} Qh5+ {[%emt 0:00:51]} 32. Kg1 {[%emt 0:00:01]} Qd1+ {[%emt 0:01:13]} 33. Kh2 {[%emt 0:00:01]} Qh5+ {[%emt 0:01:29]} 34. Kg1 {[%emt 0:00:00]} Qd1+ {[%emt 0:05:42]} 1/2-1/2

[Event "FRA-chTW Top 12 2019"]
[Site "Vandoeuvre"]
[Date "2019.05.03"]
[Round "2.11"]
[White "Richard, Emma"]
[Black "Nicolas, Gabrielle"]
[Result "1-0"]
[ECO "C05"]
[WhiteElo "2120"]
[BlackElo "1733"]
[Annotator "NA"]
[PlyCount "129"]
[EventDate "2019.05.02"]
[EventType "team-tourn"]
[EventCountry "FRA"]
[SourceTitle "playchess.com"]
[Source "ChessBase"]
[SourceQuality "1"]
[TimeControl "40/5400+30:1800+30"]

1. e4 {[%emt 0:02:05]} e6 {[%emt 0:00:00]} 2. d4 {[%emt 0:00:08]} d5 {[%emt 0:00:17]} 3. Nd2 {[%emt 0:00:06]} Nf6 {[%emt 0:00:45]} 4. e5 {[%emt 0:00:08]} Nfd7 {[%emt 0:00:26]} 5. f4 {[%emt 0:00:19]} c5 {[%emt 0:02:23]} 6. Ngf3 {[%emt 0:00:08]} Nc6 {[%emt 0:02:50]} 7. Nb3 {[%emt 0:00:18]} Be7 {[%emt 0:02:43]} 8. dxc5 {[%emt 0:00:55]} Nxc5 {[%emt 0:01:07]} 9. Be3 {[%emt 0:00:16]} b6 {[%emt 0:03:31]} 10. Bb5 {[%emt 0:18:00]} Bd7 {[%emt 0:06:50]} 11. Bxc6 {[%emt 0:06:45]} Bxc6 {[%emt 0:00:12]} 12. Nbd4 {[%emt 0:02:06]} Rc8 {[%emt 0:09:12]} 13. O-O {[%emt 0:01:02]} Qd7 {[%emt 0:12:12]} 14. Nxc6 {[%emt 0:03:16]} Qxc6 {[%emt 0:03:01]} 15. f5 {[%emt 0:02:35]} Qc7 {[%emt 0:11:30]} 16. fxe6 {[%emt 0:34:22]} fxe6 {[%emt 0:02:20]} 17. Nd4 {[%emt 0:10:07]} Qxe5 {[%emt 0:09:56]} 18. Qe2 {[%emt 0:01:17]} Bf6 {[%emt 0:05:39]} 19. Qb5+ {[%emt 0:01:21]} Nd7 {[%emt 0:02:50]} 20. Rae1 {[%emt 0:01:00]} Qd6 {[%emt 0:03:19]} 21. Nxe6 {[%emt 0:03:23]} Kf7 {[%emt 0:08:57]} 22. Ng5+ {[%emt 0:02:36]} Kg8 {[%emt 0:00:22]} 23. Qa4 {[%emt 0:01:48]} h6 {[%emt 0:02:35]} 24. Nf3 {[%emt 0:00:45]} Kh7 {[%emt 0:01:11]} 25. c3 {[%emt 0:00:19]} Nc5 {[%emt 0:02:55]} 26. Qg4 {[%emt 0:01:22]} Rhf8 {[%emt 0:02:27]} 27. Bf4 {[%emt 0:04:05]} Qd8 {[%emt 0:01:58]} 28. Ne5 {[%emt 0:00:57]} Bxe5 {[%emt 0:00:30]} 29. Bxe5 {[%emt 0:00:05]} Qd7 {[%emt 0:00:32]} 30. Qxd7 {[%emt 0:01:50]} Nxd7 {[%emt 0:00:01]} 31. Bd4 {[%emt 0:00:07]} Kg8 {[%emt 0:01:41]} 32. Re7 {[%emt 0:01:08]} Rxf1+ {[%emt 0:00:09]} 33. Kxf1 {[%emt 0:00:01]} Rf8+ {[%emt 0:00:04]} 34. Ke2 {[%emt 0:00:05]} Rf7 {[%emt 0:00:11]} 35. Rxf7 {[%emt 0:01:26]} Kxf7 {[%emt 0:00:02]} 36. Kd3 {[%emt 0:00:14]} g6 {[%emt 0:00:34]} 37. b4 {[%emt 0:00:07]} a6 {[%emt 0:01:28]} 38. a4 {[%emt 0:01:18]} b5 {[%emt 0:00:36]} 39. a5 {[%emt 0:00:42]} Ke6 {[%emt 0:00:57]} 40. Bg7 {[%emt 0:00:25]} h5 {[%emt 0:00:23]} 41. Kd4 {[%emt 0:30:21]} Kd6 {[%emt 0:30:45]} 42. Bh6 {[%emt 0:00:41]} Nf6 {[%emt 0:01:02]} 43. Bf4+ {[%emt 0:00:48]} Ke6 {[%emt 0:00:28]} 44. Bh6 {[%emt 0:00:34]} Kd6 {[%emt 0:00:12]} 45. Bf8+ {[%emt 0:00:10]} Ke6 {[%emt 0:00:14]} 46. Bg7 {[%emt 0:00:40]} Nd7 {[%emt 0:00:31]} 47. Bh6 {[%emt 0:00:27]} Kd6 {[%emt 0:00:40]} 48. Bf4+ {[%emt 0:00:12]} Ke6 {[%emt 0:00:14]} 49. Bc7 {[%emt 0:00:59]} Nf6 {[%emt 0:00:35]} 50. Kc5 {[%emt 0:00:22]} Ne4+ {[%emt 0:00:26]} 51. Kb6 {[%emt 0:00:37]} Nxc3 {[%emt 0:00:31]} 52. Kxa6 {[%emt 0:00:05]} d4 {[%emt 0:00:15]} 53. Kb7 {[%emt 0:00:22]} Nd5 {[%emt 0:00:26]} 54. a6 {[%emt 0:00:04]} d3 {[%emt 0:00:10]} 55. a7 {[%emt 0:00:04]} d2 {[%emt 0:00:16]} 56. a8=Q {[%emt 0:00:04]} d1=Q {[%emt 0:00:14]} 57. Qe8+ {[%emt 0:01:24]} Ne7 {[%emt 0:01:23]} 58. Qxb5 {[%emt 0:00:23]} Qe1 {[%emt 0:00:47]} 59. Qa6+ {[%emt 0:00:39]} Kf7 {[%emt 0:00:25]} 60. Qc4+ {[%emt 0:00:08]} Ke8 {[%emt 0:00:41]} 61. Bd6 {[%emt 0:00:35]} Qf2 {[%emt 0:01:05]} 62. Qe4 {[%emt 0:00:59]} Qf6 {[%emt 0:00:27]} 63. Qxe7+ {[%emt 0:00:14]} Qxe7+ {[%emt 0:00:16]} 64. Bxe7 {[%emt 0:00:04]} Kxe7 {[%emt 0:00:10]} 65. Kc7 {[%emt 0:00:03]} 1-0